bitfinex-derivatives/quotes_BTCF0:USTF0_20260214
["timestamp","ask_amount","ask_price","bid_price","bid_amount"]
[1771057210323,0.00012812,69566.0,69557.0,0.014384]
[1771057210629,0.01451012,69566.0,69556.0,0.014384]
[1771057210834,0.014383,69565.0,69554.0,0.028905]
[1771057211231,0.014383,69565.0,69554.0,0.01452]
[1771057211433,0.00012812,69566.0,69545.0,0.014386]
[1771057211434,0.014384,69557.0,69545.0,0.014387]
[1771057211633,0.39881373,69556.0,69544.0,0.028907]
[1771057211832,0.41319773,69556.0,69546.0,0.014386]
[1771057212031,0.014385,69554.0,69543.0,0.014387]
[1771057212336,0.014386,69549.0,69541.0,0.01452]
[1771057212535,0.38439528,69553.0,69532.0,0.38618991]
[1771057212536,0.39881373,69550.0,69533.0,0.014389]
[1771057212737,0.014386,69547.0,69536.0,0.014388]
[1771057212936,0.028906,69546.0,69536.0,0.014388]
[1771057213238,0.01452,69546.0,69537.0,0.014388]
[1771057213437,0.01452,69546.0,69536.0,0.014388]
[1771057213639,0.014387,69545.0,69536.0,0.014388]
[1771057213840,0.01452,69546.0,69534.0,0.15828]
[1771057214045,0.028906,69546.0,69534.0,0.15828]
[1771057214336,0.014386,69550.0,69536.0,0.014388]
[1771057214542,0.01452,69547.0,69541.0,0.014387]
[1771057214738,0.014385,69551.0,69543.0,0.011]
[1771057214934,0.1438,69552.0,69543.0,0.011]
[1771057214935,0.158185,69552.0,69543.0,0.011]
[1771057215135,0.014385,69551.0,69540.0,0.014388]
[1771057215334,0.00015266,69550.0,69543.0,0.014387]
[1771057215540,0.01452,69551.0,69546.0,0.014386]
[1771057215741,0.01452,69551.0,69545.0,0.014387]
[1771057215939,0.01652,69551.0,69545.0,0.014387]
[1771057216338,0.01452,69551.0,69545.0,0.014387]
[1771057216546,0.00208321,69550.0,69544.0,0.014387]
[1771057217230,0.01452,69551.0,69544.0,0.014387]
[1771057217439,0.01452,69551.0,69533.0,0.40057891]
[1771057217440,0.39881373,69551.0,69533.0,0.40057891]
[1771057217650,0.014385,69555.0,69539.0,0.38618991]
[1771057217834,0.014385,69553.0,69545.0,0.38618991]
[1771057218140,0.15832,69552.0,69545.0,0.38618991]
[1771057218343,0.15832,69552.0,69543.0,0.014387]
[1771057218541,0.002,69551.0,69545.0,0.004]
[1771057219139,0.01452,69550.0,69545.0,0.38818991]
[1771057219337,0.158185,69555.0,69545.0,0.38818991]
[1771057219642,0.01452,69554.0,69545.0,0.38618991]
[1771057219838,0.01452,69554.0,69544.0,0.014387]
[1771057220044,0.028905,69554.0,69544.0,0.014387]
[1771057220438,0.01452,69553.0,69545.0,0.014387]
[1771057220638,0.014383,69562.0,69549.0,0.38618991]
[1771057220943,0.014384,69557.0,69546.0,0.014386]
[1771057221137,0.01452,69556.0,69547.0,0.014386]
[1771057221332,0.01452,69556.0,69546.0,0.014386]
[1771057221533,0.01452,69556.0,69547.0,0.38618991]
[1771057221736,0.014385,69555.0,69545.0,0.02152]
[1771057221940,0.014385,69554.0,69545.0,0.02152]
[1771057222140,0.014385,69554.0,69539.0,0.014388]
[1771057222141,0.014386,69548.0,69537.0,0.014388]
[1771057222450,0.028905,69551.0,69541.0,0.014387]
[1771057222744,0.014386,69550.0,69542.0,0.38618991]
[1771057222945,0.014386,69548.0,69538.0,0.028908]
[1771057223146,0.014388,69539.0,69528.0,0.01439]
[1771057223443,0.014387,69544.0,69530.0,0.01439]
[1771057223444,0.028908,69540.0,69530.0,0.01439]
[1771057223641,0.38429373,69538.0,69529.0,0.01452]
[1771057223835,0.014389,69536.0,69522.0,0.00013784]
[1771057224042,0.014389,69536.0,69524.0,0.014391]
[1771057224043,0.014389,69534.0,69524.0,0.014391]
[1771057224443,0.028909,69535.0,69530.0,0.001]
[1771057224644,0.01452,69535.0,69530.0,0.001]
[1771057224948,0.01452,69535.0,69525.0,0.014391]
[1771057225247,0.002,69534.0,69525.0,0.014391]
[1771057225749,0.01452,69535.0,69528.0,0.01439]
[1771057226143,0.01452,69535.0,69529.0,0.01439]
[1771057227550,0.01452,69535.0,69527.0,0.02878]
[1771057228252,0.01652,69535.0,69527.0,0.02878]
[1771057228453,0.01952,69535.0,69529.0,0.002]
[1771057228651,0.01952,69535.0,69530.0,0.01439]
[1771057228956,0.01952,69535.0,69529.0,0.002]
[1771057229352,0.01452,69535.0,69527.0,0.01439]
[1771057229752,0.014389,69531.0,69522.0,0.00013784]
[1771057229948,0.01439,69530.0,69522.0,0.00013784]
[1771057230760,0.01439,69531.0,69522.0,0.01465784]
[1771057230953,0.014389,69532.0,69523.0,0.014391]
[1771057231157,0.01452,69531.0,69523.0,0.014391]
[1771057232060,0.01452,69531.0,69529.0,0.005]
[1771057232367,0.01452,69534.0,69529.0,0.01939]
[1771057232545,0.01452,69535.0,69530.0,0.01439]
[1771057232750,0.14388,69539.0,69530.0,0.01439]
[1771057232751,0.14388,69539.0,69531.0,0.014389]
[1771057232952,0.014389,69536.0,69529.0,0.005]
[1771057233154,0.01452,69535.0,69526.0,0.01452]
[1771057233461,0.01452,69535.0,69527.0,0.01439]
[1771057233862,0.014388,69538.0,69527.0,0.01439]
[1771057234049,0.01452,69537.0,69528.0,0.01439]
[1771057234457,0.028908,69537.0,69528.0,0.01439]
[1771057235056,0.005,69535.0,69528.0,0.01439]
[1771057235761,0.158268,69538.0,69533.0,0.014389]
[1771057235762,0.1584,69538.0,69533.0,0.014389]
[1771057235951,0.01452,69538.0,69533.0,0.014389]
[1771057236151,0.01452,69538.0,69526.0,0.01652]
[1771057236152,0.014389,69536.0,69526.0,0.002]
[1771057236354,0.014389,69534.0,69526.0,0.002]
[1771057236661,0.14388,69543.0,69518.0,0.014392]
[1771057236662,0.01439,69528.0,69518.0,0.014392]
[1771057236866,0.01452,69533.0,69524.0,0.014391]
[1771057237253,0.01452,69533.0,69523.0,0.01452]
[1771057237254,0.014389,69532.0,69523.0,0.01452]
[1771057237453,0.01439,69530.0,69523.0,0.01452]
[1771057237653,0.01452,69533.0,69523.0,0.028911]
[1771057237855,0.01452,69533.0,69526.0,0.01439]
[1771057238051,0.01452,69533.0,69525.0,0.014391]
[1771057238052,0.01452,69532.0,69521.0,0.39916962]
[1771057238252,0.01452,69533.0,69526.0,0.01439]
[1771057238460,0.01452,69533.0,69527.0,0.01439]
[1771057238760,0.01452,69533.0,69528.0,0.01439]
[1771057238956,0.01452,69533.0,69529.0,0.01439]
[1771057239260,0.014388,69538.0,69528.0,0.41355962]
[1771057239461,0.01452,69537.0,69530.0,0.01439]
[1771057239659,0.028908,69539.0,69531.0,0.37623444]
[1771057239865,0.29734051,69552.0,69531.0,0.37623444]
[1771057239866,0.29734051,69560.0,69538.0,0.37623444]
[1771057240056,0.14388,69559.0,69545.0,0.37623444]
[1771057240259,0.014385,69553.0,69544.0,0.01452]
[1771057240562,0.01452,69553.0,69544.0,0.01452]
[1771057241163,0.01452,69554.0,69546.0,0.014386]
[1771057241463,0.01452,69554.0,69539.0,0.014388]
[1771057241464,0.014387,69544.0,69539.0,0.01452]
[1771057241658,0.014387,69544.0,69534.0,0.014389]
[1771057241659,0.014387,69542.0,69534.0,0.14388]
[1771057241863,0.014387,69543.0,69532.0,0.028909]
[1771057242365,0.01452,69548.0,69544.0,0.003]
[1771057242564,0.014386,69547.0,69538.0,0.01452]
[1771057243054,0.01452,69548.0,69539.0,0.014388]
[1771057243455,0.002,69544.0,69539.0,0.005]
[1771057243661,0.014384,69559.0,69547.0,0.39062044]
[1771057243970,0.014385,69555.0,69547.0,0.37623444]
[1771057244265,0.028905,69555.0,69547.0,0.37623444]
[1771057244458,0.01452,69555.0,69547.0,0.37623444]
[1771057244659,0.01452,69555.0,69545.0,0.014387]
[1771057245568,0.01452,69555.0,69545.0,0.39062144]
[1771057245861,0.01452,69556.0,69550.0,0.37623444]
[1771057246062,0.01452,69558.0,69550.0,0.39075444]
[1771057246262,0.001,69555.0,69550.0,0.39075444]
[1771057246466,0.01452,69558.0,69550.0,0.40514044]
[1771057246763,0.01452,69558.0,69550.0,0.028906]
[1771057247067,0.015385,69555.0,69550.0,0.01452]
[1771057247255,0.01452,69558.0,69550.0,0.01452]
[1771057247460,0.014384,69557.0,69550.0,0.01452]
[1771057247667,0.014384,69557.0,69550.0,0.01752]
[1771057247965,0.014384,69557.0,69550.0,0.01452]
[1771057248173,0.014384,69556.0,69550.0,0.01752]
[1771057248361,0.014384,69557.0,69550.0,0.01752]
[1771057248874,0.014384,69556.0,69550.0,0.01752]
[1771057249062,0.014384,69557.0,69550.0,0.01752]
[1771057249670,0.015384,69557.0,69550.0,0.01652]
[1771057250272,0.014384,69556.0,69550.0,0.01852]
[1771057250472,0.015384,69557.0,69550.0,0.01852]
[1771057250671,0.014384,69556.0,69550.0,0.01852]
[1771057250964,0.014384,69556.0,69550.0,0.01652]
[1771057251566,0.01552,69557.0,69550.0,0.01652]
[1771057251867,0.01438,69578.0,69559.0,0.014384]
[1771057252165,0.01438,69578.0,69558.0,0.37623444]
[1771057252166,0.014381,69571.0,69558.0,0.37623444]
[1771057252374,0.014383,69564.0,69555.0,0.01452]
[1771057252874,0.001,69556.0,69555.0,0.01452]
[1771057253070,0.014383,69563.0,69555.0,0.01452]
[1771057253269,0.014383,69563.0,69554.0,0.014385]
[1771057253270,0.31282489,69565.0,69550.0,0.004]
[1771057253470,0.014385,69555.0,69546.0,0.14388]
[1771057253666,0.014385,69554.0,69547.0,0.01452]
[1771057253977,0.014385,69551.0,69547.0,0.01452]
[1771057254277,0.014385,69552.0,69546.0,0.130766]
[1771057254469,0.014385,69551.0,69546.0,0.130766]
[1771057254882,0.01452,69555.0,69546.0,0.50700044]
[1771057255076,0.01452,69554.0,69547.0,0.014386]
[1771057255279,0.01452,69554.0,69548.0,0.014386]
[1771057255474,0.01452,69554.0,69547.0,0.014386]
[1771057255676,0.01452,69554.0,69548.0,0.014386]
[1771057256473,0.01452,69554.0,69547.0,0.014386]
[1771057256677,0.01452,69554.0,69548.0,0.014386]
[1771057256877,0.014384,69558.0,69548.0,0.014386]
[1771057256878,0.01452,69555.0,69548.0,0.002]
[1771057257379,0.004,69554.0,69548.0,0.001]
[1771057257677,0.01452,69557.0,69550.0,0.37623444]
[1771057257875,0.01452,69557.0,69549.0,0.01452]
[1771057258077,0.01452,69557.0,69549.0,0.028906]
[1771057258271,0.01452,69557.0,69549.0,0.01452]
[1771057258979,0.01452,69556.0,69549.0,0.01452]
[1771057259278,0.01452,69556.0,69549.0,0.028906]
[1771057260165,0.01452,69556.0,69549.0,0.01452]
[1771057260366,0.014385,69555.0,69548.0,0.01452]
[1771057260572,0.029904,69556.0,69549.0,0.005]
[1771057260873,0.029904,69556.0,69538.0,0.37623444]
[1771057260874,0.014386,69548.0,69538.0,0.37623444]
[1771057261069,0.014386,69549.0,69536.0,0.14388]
[1771057261281,0.014387,69545.0,69536.0,0.14388]
[1771057261473,0.014388,69540.0,69536.0,0.1584]
[1771057261675,0.014388,69539.0,69527.0,0.01439]
[1771057261871,0.014388,69539.0,69529.0,0.01439]
[1771057262080,0.028908,69540.0,69530.0,0.01439]
[1771057262280,0.014388,69539.0,69529.0,0.39966608]
[1771057263177,0.014388,69538.0,69529.0,0.39966608]
[1771057263484,0.014389,69535.0,69528.0,0.01452]
[1771057264079,0.014389,69535.0,69529.0,0.016]
[1771057264379,0.004,69539.0,69531.0,0.38527608]
[1771057264586,0.01452,69539.0,69533.0,0.38527608]
[1771057264781,0.014387,69545.0,69534.0,0.38527608]
[1771057264972,0.01452,69544.0,69534.0,0.38527608]
[1771057265281,0.028907,69544.0,69534.0,0.014389]
[1771057265485,0.014388,69538.0,69533.0,0.01452]
[1771057265679,0.014388,69540.0,69533.0,0.01452]
[1771057265983,0.014388,69539.0,69533.0,0.01452]
[1771057266378,0.028907,69542.0,69533.0,0.01452]
[1771057266572,0.014388,69539.0,69533.0,0.01452]
[1771057267088,0.002,69535.0,69533.0,0.02152]
[1771057267383,0.002,69535.0,69533.0,0.02952]
[1771057268083,0.014389,69533.0,69531.0,0.004877]
[1771057268282,0.014389,69535.0,69531.0,0.004877]
[1771057268477,0.01439,69531.0,69529.0,0.01452]
[1771057268684,0.014389,69534.0,69527.0,0.01452]
[1771057268878,0.01439,69531.0,69527.0,0.01452]
[1771057269080,0.01439,69529.0,69523.0,0.01452]
[1771057269285,0.01439,69529.0,69514.0,0.38527608]
[1771057269479,0.014392,69521.0,69515.0,0.01452]
[1771057269782,0.014392,69522.0,69515.0,0.01452]
[1771057270181,0.014391,69522.0,69515.0,0.01452]
[1771057270582,0.002,69521.0,69515.0,0.02152]
[1771057270781,0.014391,69522.0,69515.0,0.02152]
[1771057271380,0.014391,69523.0,69515.0,0.02152]
[1771057272077,0.014391,69523.0,69515.0,0.01452]
[1771057272584,0.014391,69524.0,69506.0,0.38527608]
[1771057272897,0.014392,69520.0,69515.0,0.014]
[1771057273489,0.014392,69521.0,69515.0,0.014]
[1771057273490,0.014392,69519.0,69515.0,0.014]
[1771057273682,0.28328509,69537.0,69518.0,0.38527608]
[1771057273883,0.01452,69526.0,69520.0,0.38527608]
[1771057274078,0.01452,69526.0,69517.0,0.01452]
[1771057274079,0.014391,69524.0,69517.0,0.01452]
[1771057274278,0.014391,69522.0,69517.0,0.01452]
[1771057274688,0.014391,69524.0,69517.0,0.01452]
[1771057274689,0.014391,69523.0,69517.0,0.01452]
[1771057274990,0.014391,69525.0,69517.0,0.01452]
[1771057275391,0.028911,69526.0,69517.0,0.01452]
[1771057275789,0.014391,69525.0,69517.0,0.01452]
[1771057275990,0.014391,69523.0,69515.0,0.01452]
[1771057276492,0.002,69519.0,69515.0,0.02252]
[1771057276790,0.01452,69526.0,69515.0,0.01452]
[1771057277092,0.002,69525.0,69517.0,0.006]
[1771057277494,0.028911,69526.0,69519.0,0.014392]
[1771057277495,0.002,69523.0,69519.0,0.014392]
[1771057277791,0.01452,69526.0,69518.0,0.014392]
[1771057278494,0.01452,69526.0,69517.0,0.014392]
[1771057278684,0.014391,69525.0,69515.0,0.020393]
[1771057278892,0.028911,69526.0,69516.0,0.014393]
[1771057279090,0.028911,69526.0,69516.0,0.41418908]
[1771057279091,0.01452,69526.0,69516.0,0.41418908]
[1771057279291,0.01752,69526.0,69516.0,0.41418908]
[1771057279890,0.031911,69526.0,69516.0,0.41418908]
[1771057280091,0.01452,69527.0,69522.0,0.014391]
[1771057280294,0.27345619,69542.0,69522.0,0.38527608]
[1771057280595,0.014388,69540.0,69526.0,0.38527608]
[1771057280790,0.014389,69532.0,69525.0,0.01452]
[1771057282197,0.01452,69535.0,69525.0,0.01452]
[1771057282496,0.014389,69532.0,69525.0,0.01452]
[1771057282692,0.01452,69535.0,69525.0,0.01452]
[1771057282898,0.014389,69533.0,69525.0,0.01452]
[1771057283491,0.014389,69534.0,69525.0,0.01452]
[1771057283687,0.028909,69534.0,69525.0,0.01452]
[1771057283891,0.2732734,69542.0,69530.0,0.01439]
[1771057283892,0.020387,69542.0,69530.0,0.01439]
[1771057284090,0.028907,69541.0,69530.0,0.01439]
[1771057284298,0.01452,69541.0,69530.0,0.01439]
[1771057285205,0.014388,69540.0,69530.0,0.01439]
[1771057285398,0.001,69533.0,69529.0,0.01439]
[1771057285594,0.001,69533.0,69524.0,0.38527608]
[1771057285595,0.01439,69530.0,69521.0,0.14392]
[1771057285794,0.01439,69528.0,69511.0,0.014394]
[1771057286001,0.014391,69524.0,69515.0,0.01452]
[1771057286200,0.014391,69525.0,69515.0,0.028913]
[1771057286396,0.014391,69523.0,69515.0,0.01452]
[1771057286600,0.014392,69520.0,69515.0,0.01452]
[1771057286799,0.028911,69525.0,69515.0,0.028913]
[1771057286998,0.028911,69525.0,69516.0,0.014393]
[1771057287194,0.01452,69525.0,69516.0,0.014393]
[1771057287395,0.001,69533.0,69525.0,0.014391]
[1771057287600,0.27092244,69540.0,69524.0,0.014391]
[1771057287601,0.014387,69545.0,69530.0,0.38527608]
[1771057287809,0.014387,69541.0,69531.0,0.39966508]
[1771057288005,0.15844,69544.0,69528.0,0.01452]
[1771057288006,0.014389,69536.0,69528.0,0.01452]
[1771057288299,0.014391,69527.0,69515.0,0.38727608]
[1771057288501,0.014391,69527.0,69517.0,0.014392]
[1771057288700,0.014391,69526.0,69516.0,0.01452]
[1771057289105,0.01452,69525.0,69516.0,0.028912]
[1771057289702,0.014391,69523.0,69516.0,0.01452]
[1771057289902,0.01452,69525.0,69517.0,0.014392]
[1771057290106,0.014389,69534.0,69523.0,0.014391]
[1771057290308,0.028909,69533.0,69523.0,0.39966708]
[1771057290604,0.01452,69537.0,69531.0,0.38527608]
[1771057290808,0.028908,69539.0,69531.0,0.39979608]
[1771057291107,0.028908,69539.0,69531.0,0.01452]
[1771057291108,0.014388,69537.0,69531.0,0.01452]
[1771057291804,0.29519714,69538.0,69521.0,0.014391]
[1771057292010,0.001,69527.0,69522.0,0.028911]
[1771057292203,0.014389,69532.0,69522.0,0.028911]
[1771057292503,0.014389,69532.0,69522.0,0.014391]
[1771057292804,0.01439,69530.0,69523.0,0.01452]
[1771057293005,0.01439,69531.0,69523.0,0.01452]
[1771057293210,0.014389,69532.0,69523.0,0.01452]
[1771057293211,0.01439,69528.0,69523.0,0.01452]
[1771057293411,0.014391,69525.0,69522.0,0.01452]
[1771057293711,0.2950608,69531.0,69513.0,0.3656116]
[1771057293712,0.014391,69524.0,69515.0,0.014393]
[1771057293901,0.014391,69524.0,69516.0,0.01452]
[1771057294100,0.014391,69524.0,69514.0,0.014393]
[1771057294101,0.014392,69521.0,69512.0,0.14392]
[1771057294305,0.014392,69521.0,69513.0,0.01452]
[1771057295306,0.014391,69523.0,69513.0,0.01452]
[1771057295514,0.028911,69524.0,69514.0,0.014393]
[1771057295713,0.014391,69523.0,69513.0,0.01452]
[1771057295905,0.014391,69522.0,69513.0,0.01452]
[1771057296105,0.001,69521.0,69513.0,0.01852]
[1771057296711,0.014391,69522.0,69513.0,0.01452]
[1771057297113,0.028783,69522.0,69513.0,0.01452]
[1771057297310,0.014392,69521.0,69513.0,0.01452]
[1771057298322,0.014392,69520.0,69513.0,0.01452]
[1771057299012,0.014392,69519.0,69513.0,0.002]
[1771057299411,0.014392,69520.0,69513.0,0.003]
[1771057299611,0.015392,69521.0,69513.0,0.003]
[1771057299811,0.014391,69523.0,69513.0,0.014393]
[1771057300011,0.01552,69520.0,69513.0,0.002]
[1771057300217,0.014392,69519.0,69513.0,0.002]
[1771057300406,1e-08,69520.0,69513.0,0.002]
[1771057300608,0.01452,69520.0,69513.0,0.002]
[1771057300916,0.01452,69520.0,69514.0,0.014393]
[1771057301112,0.01452,69521.0,69514.0,0.35976223]
[1771057301316,0.014391,69522.0,69514.0,0.35976223]
[1771057301517,0.028911,69522.0,69514.0,0.35976223]
[1771057301812,0.028911,69522.0,69513.0,0.002]
[1771057302005,0.043303,69522.0,69512.0,0.01452]
[1771057302205,0.01452,69522.0,69513.0,0.001]
[1771057302416,0.014392,69520.0,69513.0,0.001]
[1771057303118,0.014392,69519.0,69513.0,0.001]
[1771057303617,0.014392,69519.0,69512.0,0.01452]
[1771057304210,0.31648927,69522.0,69512.0,0.01452]
[1771057304409,0.014393,69514.0,69509.0,0.01452]
[1771057304610,0.028912,69518.0,69509.0,0.01452]
[1771057304817,0.01452,69518.0,69512.0,0.014393]
[1771057305019,0.01452,69519.0,69512.0,0.014393]
[1771057305314,0.01452,69518.0,69513.0,0.002]
[1771057305916,0.014391,69526.0,69517.0,0.35976223]
[1771057306108,0.01452,69525.0,69517.0,0.37415423]
[1771057306308,0.01452,69525.0,69517.0,0.35976223]
[1771057306519,0.01452,69525.0,69515.0,0.014393]
[1771057306719,0.028911,69525.0,69515.0,0.014393]
[1771057306913,0.014391,69524.0,69514.0,0.014393]
[1771057308520,0.014391,69523.0,69513.0,0.38867523]
[1771057308915,0.014391,69523.0,69513.0,0.028913]
[1771057309319,0.014392,69520.0,69513.0,0.01452]
[1771057309518,0.014392,69521.0,69513.0,0.01452]
[1771057309822,0.014392,69519.0,69510.0,0.01452]
[1771057310423,0.014392,69518.0,69510.0,0.01452]
[1771057311023,0.028784,69518.0,69510.0,0.01452]
[1771057311323,0.014392,69519.0,69510.0,0.01452]
[1771057311512,0.028912,69520.0,69510.0,0.028914]
[1771057312121,0.01452,69520.0,69510.0,0.01452]
[1771057312318,0.014393,69515.0,69507.0,0.01452]
[1771057312518,0.014393,69514.0,69506.0,0.14392]
[1771057312718,0.014393,69513.0,69506.0,0.14392]
[1771057312924,0.01439,69527.0,69517.0,0.35976223]
[1771057313221,0.028911,69526.0,69515.0,0.014393]
[1771057313528,0.014391,69524.0,69513.0,0.35976223]
[1771057313726,0.014392,69520.0,69512.0,0.01452]
[1771057314119,0.014392,69519.0,69512.0,0.01452]
[1771057315017,0.014392,69520.0,69512.0,0.01452]
[1771057315220,0.01452,69521.0,69512.0,0.028913]
[1771057315419,0.01452,69521.0,69511.0,0.014394]
[1771057315721,0.01452,69521.0,69510.0,0.37415623]
[1771057316232,0.014392,69520.0,69510.0,0.37415623]
[1771057317319,0.014392,69519.0,69510.0,0.35976223]
[1771057317726,0.014392,69518.0,69509.0,0.01452]
[1771057319726,0.014393,69517.0,69509.0,0.01452]
[1771057320129,0.014392,69517.0,69509.0,0.01452]
[1771057320326,0.014392,69520.0,69509.0,0.01452]
[1771057320627,0.01452,69522.0,69515.0,0.35976223]
[1771057320925,0.01452,69523.0,69515.0,0.35976223]
[1771057321123,0.014391,69522.0,69515.0,0.35976223]
[1771057321324,0.014392,69520.0,69515.0,0.35976223]
[1771057321525,0.014392,69517.0,69514.0,0.01452]
[1771057321729,0.014393,69515.0,69510.0,0.01452]
[1771057321923,0.014394,69511.0,69505.0,0.129698]
[1771057322123,0.014394,69510.0,69505.0,0.144218]
[1771057322826,0.028788,69511.0,69505.0,0.144218]
[1771057323619,0.014393,69514.0,69506.0,0.35699098]
[1771057324825,0.014393,69513.0,69505.0,0.144218]
[1771057325226,0.014393,69514.0,69489.0,0.35713353]
[1771057325227,0.32691969,69509.0,69489.0,0.35713353]
[1771057325428,0.014394,69511.0,69501.0,0.35699098]
[1771057325727,0.014394,69509.0,69501.0,0.35699098]
[1771057325932,0.014394,69509.0,69500.0,0.01452]
[1771057325933,0.14396,69515.0,69504.0,0.35699098]
[1771057326233,0.01452,69514.0,69505.0,0.37151098]
[1771057326422,0.014393,69513.0,69505.0,0.37151098]
[1771057326621,0.014393,69514.0,69505.0,0.37151098]
[1771057326823,0.014394,69511.0,69505.0,0.37151098]
[1771057327034,0.028788,69510.0,69505.0,0.37151098]
[1771057327230,0.014394,69511.0,69505.0,0.01452]
[1771057327420,0.014393,69512.0,69505.0,0.01452]
[1771057327626,0.028787,69512.0,69505.0,0.01452]
[1771057328023,0.014394,69510.0,69505.0,0.01452]
[1771057329237,0.014393,69512.0,69505.0,0.01452]
[1771057329238,0.01452,69513.0,69505.0,0.01452]
[1771057329535,0.014394,69509.0,69505.0,0.01452]
[1771057329732,0.014395,69506.0,69503.0,0.01452]
[1771057330123,0.014395,69506.0,69501.0,0.01452]
[1771057330326,0.014395,69504.0,69499.0,0.15848]
[1771057330527,0.014395,69504.0,69492.0,0.37138898]
[1771057330528,0.014394,69507.0,69492.0,0.35699098]
[1771057330730,0.014396,69500.0,69493.0,0.01452]
[1771057331728,0.014395,69504.0,69493.0,0.38590798]
[1771057332036,0.028914,69509.0,69499.0,0.35699098]
[1771057332535,0.01452,69513.0,69506.0,0.35699098]
[1771057333531,0.01452,69513.0,69504.0,0.028915]
[1771057333532,0.01452,69513.0,69504.0,0.01452]
[1771057333726,0.014394,69511.0,69504.0,0.01452]
[1771057334123,0.01452,69514.0,69506.0,0.35699098]
[1771057334524,0.014392,69520.0,69509.0,0.014394]
[1771057334730,0.028912,69519.0,69509.0,0.37138498]
[1771057335130,0.014392,69519.0,69509.0,0.37138498]
[1771057335334,0.01452,69518.0,69509.0,0.37138498]
[1771057335534,0.028912,69518.0,69509.0,0.35699098]
[1771057335736,0.014393,69514.0,69508.0,0.01452]
[1771057336234,0.014393,69515.0,69508.0,0.01452]
[1771057337530,0.014393,69513.0,69498.0,0.014396]
[1771057337732,0.014393,69513.0,69501.0,0.014396]
[1771057337733,0.014394,69511.0,69501.0,0.014396]
[1771057338030,0.36571339,69516.0,69501.0,0.014396]
[1771057338031,0.01452,69512.0,69506.0,0.014395]
[1771057338232,0.01452,69512.0,69504.0,0.38578098]
[1771057338537,0.01452,69512.0,69505.0,0.014395]
[1771057338832,0.01452,69512.0,69505.0,0.37138598]
[1771057339035,0.01452,69512.0,69505.0,0.35699098]
[1771057339235,0.01452,69512.0,69505.0,0.01452]
[1771057345033,0.01452,69513.0,69505.0,0.01452]
[1771057346135,0.014394,69511.0,69505.0,0.01452]
[1771057346338,0.014394,69510.0,69504.0,0.01452]
[1771057346538,0.014395,69506.0,69503.0,0.000881]
[1771057347037,0.014395,69506.0,69502.0,0.01452]
[1771057347537,0.014395,69506.0,69499.0,0.01452]
[1771057347731,0.014395,69507.0,69499.0,0.01452]
[1771057347930,0.01452,69508.0,69501.0,0.014396]
[1771057348130,0.01452,69508.0,69500.0,0.39430764]
[1771057349838,0.014394,69510.0,69500.0,0.39430764]
[1771057350039,0.01452,69509.0,69500.0,0.39430764]
[1771057350537,0.01452,69509.0,69499.0,0.39443164]
[1771057350739,0.01452,69509.0,69504.0,0.37991164]
[1771057350945,0.01452,69512.0,69504.0,0.37991164]
[1771057351435,1.4398,69547.0,69503.0,0.01452]
[1771057351436,0.01439,69527.0,69507.0,0.3811177]
[1771057351641,0.014392,69518.0,69509.0,0.3811177]
[1771057351842,0.01452,69517.0,69509.0,0.3811177]
[1771057352037,0.014391,69522.0,69509.0,0.3811177]
[1771057352339,0.14396,69532.0,69517.0,0.3811177]
[1771057352538,0.14396,69532.0,69508.0,0.01452]
[1771057352539,0.01439,69530.0,69519.0,0.3811177]
[1771057352844,0.014386,69548.0,69533.0,0.3811177]
[1771057353037,0.014387,69543.0,69533.0,0.3811177]
[1771057353340,0.014388,69539.0,69529.0,0.3956377]
[1771057353540,0.014386,69548.0,69491.0,0.75163328]
[1771057353541,0.014388,69536.0,69517.0,0.3811177]
[1771057353845,0.014391,69525.0,69518.0,0.15848]
[1771057354040,0.01452,69529.0,69518.0,0.15848]
[1771057354242,0.028909,69532.0,69521.0,0.014391]
[1771057354440,0.014389,69531.0,69521.0,0.3811177]
[1771057354639,0.014389,69531.0,69522.0,0.01452]
[1771057354843,0.028909,69532.0,69522.0,0.3956377]
[1771057355437,0.01439,69531.0,69522.0,0.3956377]
[1771057355744,0.01439,69530.0,69522.0,0.01452]
[1771057356440,0.014388,69540.0,69522.0,0.01452]
[1771057356441,0.028907,69543.0,69529.0,0.3811177]
[1771057356645,0.028907,69542.0,69531.0,0.3811177]
[1771057356942,0.028907,69542.0,69531.0,0.3955067]
[1771057357139,0.014387,69544.0,69532.0,0.014389]
[1771057357341,0.01452,69541.0,69532.0,0.3811177]
[1771057358140,0.028907,69541.0,69532.0,0.3811177]
[1771057358344,0.014388,69540.0,69530.0,0.02891]
[1771057358547,0.014388,69540.0,69530.0,0.01452]
[1771057358746,0.014388,69539.0,69530.0,0.01452]
[1771057358947,0.014389,69536.0,69526.0,0.01452]
[1771057359148,0.014389,69534.0,69526.0,0.01452]
[1771057359746,0.014388,69539.0,69524.0,0.028911]
[1771057359747,0.01452,69533.0,69524.0,0.028911]
[1771057360047,0.01452,69533.0,69525.0,0.158351]
[1771057360435,0.01452,69533.0,69525.0,0.14396]
[1771057361241,0.01452,69533.0,69525.0,0.158351]
[1771057361845,0.01452,69533.0,69525.0,0.14396]
[1771057362047,0.014387,69543.0,69534.0,0.34959169]
[1771057362247,0.15844,69542.0,69534.0,0.34959169]
[1771057362648,0.15844,69542.0,69532.0,0.014389]
[1771057362949,0.01452,69541.0,69532.0,0.014389]
[1771057363457,0.01452,69541.0,69532.0,0.36398069]
[1771057364153,0.01452,69541.0,69532.0,0.014389]
[1771057364352,0.01452,69541.0,69531.0,0.028909]